fUST/lending_fUST_20240721
["ID","MTS","AMOUNT","RATE_DAILY","PERIOD"]
[332785635,1721520640466,-193741.30072553,0.00013688,2]
[332785637,1721520640479,-500.0,0.00013698,2]
[332785639,1721520640488,-500.0,0.00013698,2]
[332785649,1721520640719,-500.0,0.00013698,2]
[332785650,1721520640730,-500.0,0.00013698,2]
[332785651,1721520640739,-2043.16,0.00013698,2]
[332785652,1721520640749,-500.0,0.00013698,2]
[332785653,1721520640758,-500.0,0.00013698,2]
[332785654,1721520640768,-512.35,0.00013698,2]
[332785656,1721520640777,-500.0,0.00013698,2]
[332785658,1721520640787,-500.0,0.00013698,2]
[332785660,1721520640797,-544.91142611,0.00013698,2]
[332785662,1721520640807,-504.2649073,0.00013698,2]
[332785664,1721520640816,-500.0,0.00013698,2]
[332785666,1721520640826,-237.48528334,0.00013698,2]
[332785668,1721520640835,-905.43,0.00013698,2]
[332785670,1721520640846,-500.0,0.00013698,2]
[332785672,1721520640855,-530.61,0.00013698,2]
[332785674,1721520640864,-500.0,0.00013698,2]
[332785676,1721520640874,-500.0,0.00013698,2]
[332785678,1721520640884,-500.0,0.00013698,2]
[332785680,1721520640893,-640.6,0.00013698,2]
[332785682,1721520640904,-500.0,0.00013698,2]
[332785684,1721520640914,-500.0,0.00013698,2]
[332785686,1721520640924,-500.0,0.00013698,2]
[332785688,1721520640933,-550.69,0.00013698,2]
[332785690,1721520640943,-500.0,0.00013698,2]
[332785692,1721520640953,-1237.56,0.00013698,2]
[332785694,1721520640962,-1524.97,0.00013698,2]
[332785696,1721520640972,-500.0,0.00013698,2]
[332785698,1721520640981,-544.96,0.00013698,2]
[332785700,1721520640991,-500.0,0.00013698,2]
[332785702,1721520641001,-769.67,0.00013698,2]
[332785704,1721520641010,-553.23201354,0.00013698,2]
[332785706,1721520641020,-500.0,0.00013698,2]
[332785708,1721520641030,-512.43,0.00013698,2]
[332785709,1721520641040,-500.0,0.00013698,2]
[332785711,1721520641050,-766.57,0.00013698,2]
[332785713,1721520641060,-500.0,0.00013698,2]
[332785715,1721520641070,-500.0,0.00013698,2]
[332785717,1721520641080,-500.0,0.00013698,2]
[332785719,1721520641090,-500.0,0.00013698,2]
[332785721,1721520641100,-628.81656615,0.00013698,2]
[332785723,1721520641110,-500.0,0.00013698,2]
[332785725,1721520641120,-679.77,0.00013698,2]
[332785727,1721520641129,-340.55821609,0.00013698,2]
[332785730,1721520641139,-500.0,0.00013698,2]
[332785731,1721520641149,-500.0,0.00013698,2]
[332785733,1721520641159,-500.0,0.00013698,2]
[332785735,1721520641169,-500.0,0.00013698,2]
[332785737,1721520641178,-500.0,0.00013698,2]
[332785739,1721520641187,-500.0,0.00013698,2]
[332785741,1721520641197,-500.0,0.00013698,2]
[332785744,1721520641207,-729.22,0.00013698,2]
[332785746,1721520641216,-500.0,0.00013698,2]
[332785748,1721520641226,-508.54564734,0.00013698,2]
[332785750,1721520641235,-503.66,0.00013698,2]
[332785752,1721520641246,-818.2,0.00013698,2]
[332785754,1721520641255,-500.0,0.00013698,2]
[332785756,1721520641264,-500.0,0.00013698,2]
[332785758,1721520641274,-500.0,0.00013698,2]
[332785760,1721520641284,-500.0,0.00013698,2]
[332785762,1721520641295,-500.0,0.00013698,2]
[332785764,1721520641305,-732.11,0.00013698,2]
[332785766,1721520641315,-500.0,0.00013698,2]
[332785768,1721520641324,-500.0,0.00013698,2]
[332785770,1721520641334,-722.43,0.00013698,2]
[332785772,1721520641343,-500.0,0.00013698,2]
[332785774,1721520641352,-2637.96,0.00013698,2]
[332785776,1721520641362,-500.0,0.00013698,2]
[332785777,1721520641371,-500.0,0.00013698,2]
[332785779,1721520641381,-911.72,0.00013698,2]
[332785782,1721520641390,-500.0,0.00013698,2]
[332785784,1721520641400,-500.0,0.00013698,2]
[332785785,1721520641409,-500.0,0.00013698,2]
[332785788,1721520641419,-500.0,0.00013698,2]
[332785789,1721520641428,-500.7278879,0.00013698,2]
[332785791,1721520641437,-501.9546659,0.00013698,2]
[332785793,1721520641447,-1037.95,0.00013698,2]
[332785795,1721520641456,-500.0,0.00013698,2]
[332785797,1721520641465,-757.0,0.00013698,2]
[332785799,1721520641477,-579.69,0.00013698,2]
[332785801,1721520641488,-500.0,0.00013698,2]
[332785803,1721520641497,-500.0,0.00013698,2]
[332785805,1721520641507,-2557.25,0.00013698,2]
[332785807,1721520641518,-500.0,0.00013698,2]
[332785809,1721520641528,-598.03,0.00013698,2]
[332785811,1721520641538,-500.0,0.00013698,2]
[332785813,1721520641547,-1848.94,0.00013698,2]
[332785815,1721520641559,-500.0,0.00013698,2]
[332785817,1721520641570,-882.72,0.00013698,2]
[332785819,1721520641579,-500.0,0.00013698,2]
[332785821,1721520641589,-821.03,0.00013698,2]
[332785823,1721520641599,-590.57,0.00013698,2]
[332785825,1721520641608,-500.0,0.00013698,2]
[332785827,1721520641618,-500.0,0.00013698,2]
[332785829,1721520641627,-500.0,0.00013698,2]
[332785831,1721520641637,-500.0,0.00013698,2]
[332785833,1721520641647,-164.44397908,0.00013698,2]
[332785835,1721520641659,-500.0,0.00013698,2]
[332785837,1721520641670,-500.0,0.00013698,2]
[332785839,1721520641680,-506.24968583,0.00013698,2]
[332785841,1721520641692,-500.0,0.00013698,2]
[332785843,1721520641701,-522.36,0.00013698,2]
[332785845,1721520641710,-500.0,0.00013698,2]
[332785847,1721520641719,-504.91331471,0.00013698,2]
[332785849,1721520641729,-500.0,0.00013698,2]
[332785851,1721520641739,-500.0,0.00013698,2]
[332785853,1721520641748,-1001.93,0.00013698,2]
[332785855,1721520641757,-500.0,0.00013698,2]
[332785857,1721520641767,-500.0,0.00013698,2]
[332785859,1721520641777,-500.0,0.00013698,2]
[332785861,1721520641786,-500.0,0.00013698,2]
[332785863,1721520641796,-500.0,0.00013698,2]
[332785865,1721520641805,-500.0,0.00013698,2]
[332785867,1721520641815,-400.0,0.00013698,2]
[332785869,1721520641825,-500.0,0.00013698,2]
[332785871,1721520641835,-500.0,0.00013698,2]
[332785873,1721520641845,-500.0,0.00013698,2]
[332785875,1721520641854,-500.0,0.00013698,2]
[332785877,1721520641864,-500.0,0.00013698,2]
[332785879,1721520641873,-721.66,0.00013698,2]
[332785881,1721520641882,-500.0,0.00013698,2]
[332785883,1721520641893,-500.0,0.00013698,2]
[332785885,1721520641904,-525.08,0.00013698,2]
[332785888,1721520641913,-500.73,0.00013698,2]
[332785890,1721520641923,-769.11,0.00013698,2]
[332785892,1721520641932,-500.0,0.00013698,2]
[332785894,1721520641942,-500.0,0.00013698,2]
[332785896,1721520641954,-500.0,0.00013698,2]
[332785898,1721520641965,-500.0,0.00013698,2]
[332785900,1721520641976,-500.0,0.00013698,2]
[332785902,1721520641987,-3618.37,0.00013698,2]
[332785904,1721520641997,-500.0,0.00013698,2]
[332785906,1721520642008,-1579.2,0.00013698,2]
[332785908,1721520642019,-500.0,0.00013698,2]
[332785910,1721520642028,-1111.01,0.00013698,2]
[332785912,1721520642043,-500.0,0.00013698,2]
[332785914,1721520642054,-570.43,0.00013698,2]
[332785916,1721520642068,-511.26929444,0.00013698,2]
[332785918,1721520642077,-1322.86,0.00013698,2]
[332785920,1721520642087,-500.0,0.00013698,2]
[332785922,1721520642098,-582.28461375,0.00013698,2]
[332785924,1721520642108,-281.9230277,0.00013698,2]
[332785926,1721520642121,-208.87,0.00013698,2]
[332785928,1721520642131,-500.0,0.00013698,2]
[332785931,1721520642142,-527.05,0.00013698,2]
[332785933,1721520642157,-500.0,0.00013698,2]
[332785935,1721520642167,-500.0,0.00013698,2]
[332785937,1721520642178,-627.68,0.00013698,2]
[332785939,1721520642190,-500.0,0.00013698,2]
[332785941,1721520642200,-500.0,0.00013698,2]
[332785943,1721520642209,-500.0,0.00013698,2]
[332785945,1721520642218,-503.55316172,0.00013698,2]
[332785947,1721520642227,-692.6,0.00013698,2]
[332785949,1721520642236,-517.29,0.00013698,2]
[332785951,1721520642245,-500.0,0.00013698,2]
[332785953,1721520642254,-500.0,0.00013698,2]
[332785954,1721520642264,-500.0,0.00013698,2]
[332785957,1721520642274,-500.0,0.00013698,2]
[332785959,1721520642283,-500.0,0.00013698,2]
[332785961,1721520642292,-502.36816493,0.00013698,2]
[332785963,1721520642302,-768.55,0.00013698,2]
[332785965,1721520642312,-500.0,0.00013698,2]
[332785967,1721520642321,-500.0,0.00013698,2]
[332785969,1721520642331,-500.0,0.00013698,2]
[332785971,1721520642341,-500.0,0.00013698,2]
[332785973,1721520642351,-500.0,0.00013698,2]
[332785975,1721520642360,-500.0,0.00013698,2]
[332785977,1721520642369,-502.96509409,0.00013698,2]
[332785979,1721520642379,-1146.24,0.00013698,2]
[332785981,1721520642389,-500.0,0.00013698,2]
[332785983,1721520642398,-500.0,0.00013698,2]
[332785985,1721520642409,-500.0,0.00013698,2]
[332785987,1721520642419,-500.0,0.00013698,2]
[332785989,1721520642429,-500.0,0.00013698,2]
[332785990,1721520642438,-500.0,0.00013698,2]
[332785992,1721520642447,-500.0,0.00013698,2]
[332785994,1721520642457,-500.0,0.00013698,2]
[332785996,1721520642467,-315.09393361,0.00013698,2]
[332785998,1721520642483,-500.0,0.00013698,2]
[332786000,1721520642493,-212.88331305,0.00013698,2]
[332786003,1721520642503,-500.0,0.00013698,2]
[332786005,1721520642513,-500.0,0.00013698,2]
[332786007,1721520642525,-795.57,0.00013698,2]
[332786009,1721520642535,-500.0,0.00013698,2]
[332786011,1721520642545,-500.0,0.00013698,2]
[332786013,1721520642559,-500.0,0.00013698,2]
[332786015,1721520642569,-500.0,0.00013698,2]
[332786017,1721520642579,-642.62,0.00013698,2]
[332786019,1721520642588,-500.0,0.00013698,2]
[332786021,1721520642598,-500.0,0.00013698,2]
[332786023,1721520642608,-500.0,0.00013698,2]
[332786025,1721520642618,-751.85,0.00013698,2]
[332786027,1721520642628,-500.0,0.00013698,2]
[332786029,1721520642638,-261.30972445,0.00013698,2]
[332786031,1721520642647,-500.0,0.00013698,2]
[332786033,1721520642658,-500.0,0.00013698,2]
[332786035,1721520642668,-2278.87,0.00013698,2]
[332786037,1721520642677,-471.64085717,0.00013698,2]
[332786039,1721520642686,-1475.13,0.00013698,2]
[332786041,1721520642695,-1551.12,0.00013698,2]
[332786043,1721520642705,-500.0,0.00013698,2]
[332786045,1721520642714,-500.0,0.00013698,2]
[332786047,1721520642724,-1788.26,0.00013698,2]
[332786049,1721520642734,-150.0,0.00013698,2]
[332786051,1721520642744,-525.39968545,0.00013698,2]
[332786053,1721520642753,-1655.67,0.00013698,2]
[332786055,1721520642764,-500.0,0.00013698,2]
[332786057,1721520642774,-635.03105591,0.00013698,2]
[332786059,1721520642785,-500.0,0.00013698,2]
[332786061,1721520642795,-500.0,0.00013698,2]
[332786063,1721520642805,-500.0,0.00013698,2]
[332786065,1721520642814,-1091.22,0.00013698,2]
[332786067,1721520642825,-500.0,0.00013698,2]
[332786069,1721520642836,-1720.52,0.00013698,2]
[332786071,1721520642846,-1839.81,0.00013698,2]
[332786073,1721520642855,-500.0,0.00013698,2]
[332786075,1721520642865,-500.0,0.00013698,2]
[332786077,1721520642875,-500.0,0.00013698,2]
[332786080,1721520642884,-1414.52,0.00013698,2]
[332786082,1721520642894,-547.38,0.00013698,2]
[332786086,1721520642904,-500.0,0.00013698,2]
[332786089,1721520642914,-500.0,0.00013698,2]
[332786092,1721520642925,-500.0,0.00013698,2]
[332786095,1721520642934,-500.0,0.00013698,2]
[332786098,1721520642943,-500.0,0.00013698,2]
[332786101,1721520642953,-500.0,0.00013698,2]
[332786104,1721520642963,-500.0,0.00013698,2]
[332786107,1721520642973,-170.43129503,0.00013698,2]
[332786110,1721520642983,-907.3,0.00013698,2]
[332786112,1721520642992,-500.0,0.00013698,2]
[332786115,1721520643002,-502.01108199,0.00013698,2]
[332786118,1721520643012,-502.41928809,0.00013698,2]
[332786121,1721520643022,-1544.15,0.00013698,2]
[332786124,1721520643032,-500.0,0.00013698,2]
[332786127,1721520643042,-500.0,0.00013698,2]
[332786130,1721520643052,-500.0,0.00013698,2]
[332786133,1721520643061,-500.0,0.00013698,2]
[332786136,1721520643071,-576.95,0.00013698,2]
[332786139,1721520643080,-500.0,0.00013698,2]
[332786142,1721520643090,-500.0,0.00013698,2]
[332786145,1721520643100,-622.51,0.00013698,2]
[332786148,1721520643110,-551.34285931,0.00013698,2]
[332786151,1721520643120,-500.0,0.00013698,2]
[332786153,1721520643130,-742.98,0.00013698,2]
[332786155,1721520643139,-500.0,0.00013698,2]
[332786157,1721520643149,-500.0,0.00013698,2]
[332786159,1721520643161,-1190.63,0.00013698,2]
[332786161,1721520643171,-500.0,0.00013698,2]
[332786163,1721520643181,-505.59,0.00013698,2]
[332786165,1721520643190,-500.0,0.00013698,2]
[332786167,1721520643200,-500.0,0.00013698,2]
[332786169,1721520643209,-500.0,0.00013698,2]
[332786171,1721520643219,-500.0,0.00013698,2]
[332786173,1721520643229,-1688.89,0.00013698,2]
[332786175,1721520643239,-503.36826388,0.00013698,2]
[332786177,1721520643249,-510.07389428,0.00013698,2]
[332786179,1721520643259,-500.0,0.00013698,2]
[332786181,1721520643270,-690.29,0.00013698,2]
[332786183,1721520643280,-564.61,0.00013698,2]
[332786185,1721520643290,-500.0,0.00013698,2]
[332786187,1721520643300,-3012.6,0.00013698,2]
[332786189,1721520643309,-553.56,0.00013698,2]
[332786191,1721520643319,-930.51,0.00013698,2]
[332786193,1721520643328,-846.7,0.00013698,2]
[332786195,1721520643338,-1772.62,0.00013698,2]
[332786197,1721520643347,-500.0,0.00013698,2]
[332786199,1721520643357,-500.0,0.00013698,2]
[332786201,1721520643367,-971.97,0.00013698,2]
[332786203,1721520643376,-500.0,0.00013698,2]
[332786205,1721520643386,-623.13,0.00013698,2]
[332786206,1721520643395,-982.96,0.00013698,2]
[332786208,1721520643405,-576.63,0.00013698,2]
[332786210,1721520643414,-500.0,0.00013698,2]
[332786212,1721520643424,-2000.0,0.00013698,2]
[332786214,1721520643433,-500.0,0.00013698,2]
[332786216,1721520643442,-872.61,0.00013698,2]
[332786218,1721520643452,-6517.11282404,0.00013698,2]
[332786244,1721520645079,-264.46625028,0.00013698,2]
[332786245,1721520645097,-304.79092568,0.00013698,2]
[332786246,1721520645107,-591.94,0.00013698,2]
[332786247,1721520645116,-575.84430787,0.00013698,2]
[332786248,1721520645125,-539.75121852,0.00013698,2]
[332786249,1721520645134,-609.52367989,0.00013698,2]
[332786250,1721520645143,-324.77928867,0.00013698,2]
[332786251,1721520645349,-563.4,0.00013698,2]
[332786252,1721520645360,-513.24143286,0.00013698,2]
[332786253,1721520645717,-108.25856714,0.00013698,2]
[332786254,1721520645727,-500.0,0.00013698,2]
[332786255,1721520645736,-7.04143286,0.00013698,2]
[332786315,1721520646482,-492.95856714,0.00013698,2]
[332786317,1721520646493,-71.70532153,0.00013698,2]
[332786320,1721520646505,-1111.58467847,0.00013698,2]
[332786322,1721520646518,-500.0,0.00013698,2]
[332786324,1721520646528,-500.0,0.00013698,2]
[332786326,1721520646537,-500.0,0.00013698,2]
[332786328,1721520646549,-456.19070958,0.00013698,2]
[332786330,1721520646563,-65.28761402,0.00013698,2]
[332786332,1721520646574,-934.71238598,0.00013698,2]
[332786335,1721520646586,-716.68924705,0.00013698,2]
[332786338,1721520646606,-793.41632471,0.00013698,2]
[332786447,1721520727260,542.19950564,9.999e-05,2]
[332786448,1721520797674,5300.615686,0.000225,30]
[332786449,1721520909311,19862.257,0.000225,30]
[332786450,1721521262725,721.0,0.000225,30]
[332786451,1721521392636,150.0,0.000225,30]
[332786455,1721521551733,721.0,0.00016,7]
[332786456,1721521614902,217.42753322,0.00015954,7]
[332786463,1721521691124,699.0,0.00025,120]
[332786506,1721521832692,-723.41,0.00010959,2]
[332786509,1721521832703,-145.08,0.00012635,2]
[332786519,1721521838494,-154.92,0.00012635,2]
[332786521,1721521838504,-300.0,0.00012635,2]
[332786522,1721521838513,-12452.44496479,0.00012636,2]
[332786523,1721521838524,-12447.55503521,0.00012636,2]
[332786524,1721521838534,-1757.52261755,0.00013568,2]
[332786525,1721521838543,-367.31035882,0.00013571,2]
[332786526,1721521838553,-325.01066167,0.00013588,2]
[332786527,1721521838562,-325.01066165,0.00013591,2]
[332786529,1721521838572,-325.01066165,0.00013593,2]
[332786530,1721521838582,-325.01066165,0.00013596,2]
[332786531,1721521838592,-325.01066165,0.00013598,2]
[332786532,1721521838603,-826.30293588,0.00013598,2]
[332786533,1721521838613,-5303.4494987,0.00013656,2]
[332786534,1721521838622,-51932.2531197,0.00013668,2]
[332786535,1721521838632,-77898.3796796,0.00013678,2]
[332786536,1721521838641,-129830.632799,0.00013688,2]
[332786539,1721521838651,-224.5,0.00013698,2]
[332786541,1721521838661,-500.0,0.00013698,2]
[332786543,1721521838671,-500.0,0.00013698,2]
[332786544,1721521838681,-500.0,0.00013698,2]
[332786545,1721521838692,-500.0,0.00013698,2]
[332786546,1721521838702,-500.0,0.00013698,2]
[332786547,1721521838713,-500.0,0.00013698,2]
[332786548,1721521838724,-500.0,0.00013698,2]
[332786549,1721521838734,-268.42402245,0.00013698,2]
[332786550,1721521838745,-500.0,0.00013698,2]
[332786551,1721521838755,-500.0,0.00013698,2]
[332786552,1721521838765,-500.0,0.00013698,2]
[332786553,1721521838775,-500.0,0.00013698,2]
[332786554,1721521838787,-486.10303,0.00013698,2]
[332786555,1721521838796,-500.0,0.00013698,2]
[332786556,1721521838806,-500.0,0.00013698,2]
[332786557,1721521838815,-500.0,0.00013698,2]
[332786558,1721521838825,-500.0,0.00013698,2]
[332786559,1721521838835,-500.0,0.00013698,2]
[332786560,1721521838845,-500.0,0.00013698,2]
[332786561,1721521838856,-250.0,0.00013698,2]
[332786562,1721521838866,-581.90704144,0.00013698,2]
[332786563,1721521838876,-500.0,0.00013698,2]
[332786564,1721521838885,-500.0,0.00013698,2]
[332786565,1721521838895,-499.99999999,0.00013698,2]
[332786566,1721521838905,-500.0,0.00013698,2]
[332786567,1721521838916,-200.0,0.00013698,2]
[332786568,1721521838925,-500.0,0.00013698,2]
[332786569,1721521838935,-500.0,0.00013698,2]
[332786570,1721521838944,-500.0,0.00013698,2]
[332786571,1721521838954,-500.0,0.00013698,2]
[332786572,1721521838963,-500.0,0.00013698,2]
[332786573,1721521838973,-535.33170948,0.00013698,2]
[332786574,1721521838982,-500.0,0.00013698,2]
[332786575,1721521838991,-503.08189526,0.00013698,2]
[332786576,1721521839001,-500.0,0.00013698,2]
[332786577,1721521839015,-500.0,0.00013698,2]
[332786578,1721521839025,-500.0,0.00013698,2]
[332786579,1721521839034,-508.09294628,0.00013698,2]
[332786580,1721521839043,-500.0,0.00013698,2]
[332786581,1721521839053,-896.13,0.00013698,2]
[332786582,1721521839062,-712.15,0.00013698,2]
[332786583,1721521839071,-500.0,0.00013698,2]
[332786584,1721521839081,-166.27130496,0.00013698,2]
[332786585,1721521839092,-500.0,0.00013698,2]
[332786586,1721521839102,-500.0,0.00013698,2]
[332786587,1721521839111,-500.0,0.00013698,2]
[332786588,1721521839120,-500.0,0.00013698,2]
[332786589,1721521839129,-500.0,0.00013698,2]
[332786590,1721521839139,-755.27,0.00013698,2]
[332786591,1721521839148,-500.0,0.00013698,2]
[332786592,1721521839157,-500.0,0.00013698,2]
[332786593,1721521839167,-500.0,0.00013698,2]
[332786594,1721521839176,-922.84,0.00013698,2]
[332786595,1721521839186,-955.14,0.00013698,2]
[332786596,1721521839195,-500.0,0.00013698,2]
[332786597,1721521839205,-500.0,0.00013698,2]
[332786598,1721521839214,-500.0,0.00013698,2]
[332786599,1721521839224,-500.0,0.00013698,2]
[332786600,1721521839233,-500.0,0.00013698,2]
[332786601,1721521839243,-500.0,0.00013698,2]
[332786602,1721521839253,-500.0,0.00013698,2]
[332786603,1721521839263,-500.0,0.00013698,2]
[332786604,1721521839272,-500.0,0.00013698,2]
[332786605,1721521839281,-615.43055674,0.00013698,2]
[332786606,1721521839290,-500.7278879,0.00013698,2]
[332786607,1721521839300,-500.0,0.00013698,2]
[332786608,1721521839309,-501.77387035,0.00013698,2]
[332786609,1721521839318,-500.0,0.00013698,2]
[332786610,1721521839328,-500.0,0.00013698,2]
[332786611,1721521839337,-500.0,0.00013698,2]
[332786612,1721521839348,-654.99,0.00013698,2]
[332786613,1721521839358,-500.0,0.00013698,2]
[332786614,1721521839368,-500.0,0.00013698,2]
[332786615,1721521839377,-500.0,0.00013698,2]
[332786616,1721521839387,-500.0,0.00013698,2]
[332786617,1721521839397,-500.0,0.00013698,2]
[332786618,1721521839406,-500.0,0.00013698,2]
[332786619,1721521839416,-322.5,0.00013698,2]
[332786620,1721521839425,-313.35768215,0.00013698,2]
[332786621,1721521839434,-500.0,0.00013698,2]
[332786622,1721521839443,-500.0,0.00013698,2]
[332786623,1721521839453,-500.0,0.00013698,2]
[332786624,1721521839462,-547.23,0.00013698,2]
[332786625,1721521839472,-500.0,0.00013698,2]
[332786626,1721521839482,-500.0,0.00013698,2]
[332786627,1721521839491,-500.0,0.00013698,2]
[332786628,1721521839501,-500.0,0.00013698,2]
[332786629,1721521839511,-500.0,0.00013698,2]
[332786630,1721521839521,-500.0,0.00013698,2]
[332786631,1721521839530,-500.0,0.00013698,2]
[332786632,1721521839539,-502.77101996,0.00013698,2]
[332786633,1721521839549,-506.24968583,0.00013698,2]
[332786634,1721521839558,-500.0,0.00013698,2]
[332786635,1721521839568,-500.0,0.00013698,2]
[332786636,1721521839577,-500.0,0.00013698,2]
[332786637,1721521839587,-502.09315046,0.00013698,2]
[332786638,1721521839597,-500.0,0.00013698,2]
[332786639,1721521839608,-500.0,0.00013698,2]
[332786640,1721521839618,-500.0,0.00013698,2]
[332786641,1721521839628,-500.0,0.00013698,2]
[332786642,1721521839637,-523.49,0.00013698,2]
[332786643,1721521839646,-500.0,0.00013698,2]
[332786644,1721521839657,-500.0,0.00013698,2]
[332786645,1721521839667,-500.0,0.00013698,2]
[332786646,1721521839677,-500.0,0.00013698,2]
[332786647,1721521839686,-471.64085717,0.00013698,2]
[332786648,1721521839696,-1131.85,0.00013698,2]
[332786649,1721521839705,-281.9230277,0.00013698,2]
[332786650,1721521839715,-500.0,0.00013698,2]
[332786651,1721521839725,-500.0,0.00013698,2]
[332786652,1721521839734,-627.68,0.00013698,2]
[332786653,1721521839743,-525.39968545,0.00013698,2]
[332786654,1721521839753,-500.0,0.00013698,2]
[332786655,1721521839763,-500.0,0.00013698,2]
[332786656,1721521839773,-500.0,0.00013698,2]
[332786657,1721521839782,-501.9546659,0.00013698,2]
[332786658,1721521839792,-500.0,0.00013698,2]
[332786659,1721521839802,-500.0,0.00013698,2]
[332786660,1721521839811,-500.0,0.00013698,2]
[332786661,1721521839820,-503.55316172,0.00013698,2]
[332786662,1721521839830,-500.0,0.00013698,2]
[332786663,1721521839839,-500.0,0.00013698,2]
[332786664,1721521839848,-500.0,0.00013698,2]
[332786665,1721521839859,-500.0,0.00013698,2]
[332786666,1721521839868,-500.0,0.00013698,2]
[332786667,1721521839878,-500.0,0.00013698,2]
[332786668,1721521839887,-500.0,0.00013698,2]
[332786669,1721521839897,-500.0,0.00013698,2]
[332786670,1721521839907,-500.0,0.00013698,2]
[332786671,1721521839917,-500.0,0.00013698,2]
[332786672,1721521839927,-508.40747236,0.00013698,2]
[332786673,1721521839937,-642.62,0.00013698,2]
[332786674,1721521839947,-500.0,0.00013698,2]
[332786675,1721521839957,-297.39668351,0.00013698,2]
[332786676,1721521839966,-500.0,0.00013698,2]
[332786677,1721521839975,-500.0,0.00013698,2]
[332786678,1721521839985,-500.0,0.00013698,2]
[332786679,1721521839994,-500.0,0.00013698,2]
[332786680,1721521840005,-500.0,0.00013698,2]
[332786681,1721521840017,-500.0,0.00013698,2]
[332786682,1721521840027,-500.0,0.00013698,2]
[332786683,1721521840036,-500.0,0.00013698,2]
[332786684,1721521840046,-387.79553029,0.00013698,2]
[332786685,1721521840056,-500.0,0.00013698,2]
[332786686,1721521840066,-500.0,0.00013698,2]
[332786687,1721521840076,-500.0,0.00013698,2]
[332786688,1721521840088,-768.55,0.00013698,2]
[332786689,1721521840098,-500.0,0.00013698,2]
[332786690,1721521840109,-500.0,0.00013698,2]
[332786691,1721521840119,-500.0,0.00013698,2]
[332786692,1721521840129,-500.0,0.00013698,2]
[332786693,1721521840141,-270.43895219,0.00013698,2]
[332786694,1721521840151,-500.0,0.00013698,2]
[332786695,1721521840160,-500.0,0.00013698,2]
[332786696,1721521840170,-601.4404759,0.00013698,2]
[332786697,1721521840179,-500.0,0.00013698,2]
[332786698,1721521840189,-150.0,0.00013698,2]
[332786699,1721521840198,-500.0,0.00013698,2]
[332786700,1721521840208,-500.0,0.00013698,2]
[332786701,1721521840217,-595.23,0.00013698,2]
[332786702,1721521840227,-500.0,0.00013698,2]
[332786703,1721521840237,-500.0,0.00013698,2]
[332786704,1721521840246,-505.79508747,0.00013698,2]
[332786705,1721521840256,-500.0,0.00013698,2]
[332786706,1721521840265,-500.0,0.00013698,2]
[332786707,1721521840275,-500.0,0.00013698,2]
[332786708,1721521840285,-500.0,0.00013698,2]
[332786709,1721521840296,-500.0,0.00013698,2]
[332786710,1721521840305,-500.0,0.00013698,2]
[332786711,1721521840315,-500.0,0.00013698,2]
[332786712,1721521840324,-688.9,0.00013698,2]